[Event "Late Titled Tuesday Blitz February 8 2022"]
[White "Zhurbinsky, David"]
[Black "Hoffmann, Asa"]
[WhiteFideId "2072904"]
[BlackFideId "2001470"]
[WhiteElo "2555"]
[BlackElo "2117"]
[Result "1-0"]
[Round "06"]
[TimeControl "180+1"]
[Date "2022.02.09"]
[WhiteClock "0:00:08"]
[BlackClock "0:00:31"]

1. e4 {[%clk 0:03:00]}  d6 {[%clk 0:02:53]} 2. d4 {[%clk 0:02:57]}  Nf6 {[%clk 0:02:48]} 3. Nc3 {[%clk 0:02:57]}  c6 {[%clk 0:02:48]} 4. Nf3 {[%clk 0:02:56]}  Bg4 {[%clk 0:02:48]} 5. Bc4 {[%clk 0:02:55]}  e6 {[%clk 0:02:47]} 6. O-O {[%clk 0:02:54]}  d5 {[%clk 0:02:48]} 7. exd5 {[%clk 0:02:54]}  cxd5 {[%clk 0:02:48]} 8. Bb5+ {[%clk 0:02:53]}  Nc6 {[%clk 0:02:48]} 9. h3 {[%clk 0:02:53]}  Bh5 {[%clk 0:02:47]} 10. Bf4 {[%clk 0:02:49]}  Bd6 {[%clk 0:02:38]} 11. Bxd6 {[%clk 0:02:45]}  Qxd6 {[%clk 0:02:38]} 12. Re1 {[%clk 0:02:42]}  O-O {[%clk 0:02:37]} 13. Be2 {[%clk 0:02:39]}  a6 {[%clk 0:02:35]} 14. a4 {[%clk 0:02:20]}  Rac8 {[%clk 0:02:34]} 15. Qd3 {[%clk 0:01:57]}  Bg6 {[%clk 0:02:33]} 16. Qd2 {[%clk 0:01:56]}  Nb4 {[%clk 0:02:31]} 17. Rac1 {[%clk 0:01:52]}  Ne4 {[%clk 0:02:29]} 18. Nxe4 {[%clk 0:01:49]}  Bxe4 {[%clk 0:02:28]} 19. c3 {[%clk 0:01:49]}  Nc6 {[%clk 0:02:23]} 20. Qe3 {[%clk 0:01:42]}  h6 {[%clk 0:02:20]} 21. Bd3 {[%clk 0:01:41]}  f5 {[%clk 0:02:19]} 22. Bxe4 {[%clk 0:01:34]}  fxe4 {[%clk 0:02:19]} 23. Nh2 {[%clk 0:01:32]}  e5 {[%clk 0:02:15]} 24. dxe5 {[%clk 0:01:28]}  Nxe5 {[%clk 0:02:15]} 25. Rcd1 {[%clk 0:01:28]}  Rcd8 {[%clk 0:02:05]} 26. Qg3 {[%clk 0:01:22]}  Qf6 {[%clk 0:02:00]} 27. Rf1 {[%clk 0:01:15]}  Nd3 {[%clk 0:01:56]} 28. Ng4 {[%clk 0:01:13]}  Qg6 {[%clk 0:01:50]} 29. Qc7 {[%clk 0:01:02]}  Qc6 {[%clk 0:01:34]} 30. Qxc6 {[%clk 0:00:37]}  bxc6 {[%clk 0:01:33]} 31. b4 {[%clk 0:00:34]}  c5 {[%clk 0:01:24]} 32. bxc5 {[%clk 0:00:31]}  Nxc5 {[%clk 0:01:24]} 33. Rd4 {[%clk 0:00:29]}  Ne6 {[%clk 0:01:19]} 34. Rd2 {[%clk 0:00:28]}  d4 {[%clk 0:01:02]} 35. cxd4 {[%clk 0:00:28]}  Nxd4 {[%clk 0:01:02]} 36. Rfd1 {[%clk 0:00:23]}  Ne6 {[%clk 0:00:57]} 37. Ne5 {[%clk 0:00:17]}  Rxd2 {[%clk 0:00:54]} 38. Rxd2 {[%clk 0:00:18]}  Nc5 {[%clk 0:00:54]} 39. Rd4 {[%clk 0:00:14]}  Re8 {[%clk 0:00:50]} 40. Nc6 {[%clk 0:00:10]}  Re6 {[%clk 0:00:47]} 41. Rd8+ {[%clk 0:00:06]}  Kh7 {[%clk 0:00:47]} 42. Nd4 {[%clk 0:00:06]}  Rb6 {[%clk 0:00:44]} 43. a5 {[%clk 0:00:07]}  Rb4 {[%clk 0:00:44]} 44. Nc6 {[%clk 0:00:06]}  Rb5 {[%clk 0:00:43]} 45. Kh2 {[%clk 0:00:05]}  Nb3 {[%clk 0:00:43]} 46. Re8 {[%clk 0:00:02]}  Nc5 {[%clk 0:00:42]} 47. Re5 {[%clk 0:00:02]}  Nd3 {[%clk 0:00:41]} 48. Rxb5 {[%clk 0:00:02]}  axb5 {[%clk 0:00:40]} 49. a6 {[%clk 0:00:02]}  Nxf2 {[%clk 0:00:37]} 50. a7 {[%clk 0:00:03]}  e3 {[%clk 0:00:37]} 51. a8=Q {[%clk 0:00:03]}  e2 {[%clk 0:00:37]} 52. Qe8 {[%clk 0:00:03]}  b4 {[%clk 0:00:35]} 53. Qxe2 {[%clk 0:00:04]}  b3 {[%clk 0:00:34]} 54. Qxf2 {[%clk 0:00:04]}  b2 {[%clk 0:00:34]} 55. Qxb2 {[%clk 0:00:05]}  Kg6 {[%clk 0:00:34]} 56. Ne7+ {[%clk 0:00:06]}  Kf7 {[%clk 0:00:33]} 57. Nd5 {[%clk 0:00:07]}  Ke6 {[%clk 0:00:33]} 58. Ne3 {[%clk 0:00:06]}  g5 {[%clk 0:00:32]} 59. Qb5 {[%clk 0:00:07]}  Kf6 {[%clk 0:00:31]} 60. Qd5 {[%clk 0:00:08]}  Kg6 {[%clk 0:00:31]} 61. Qe6+ {[%clk 0:00:07]}  Kh5 {[%clk 0:00:31]} 62. g4+ {[%clk 0:00:08]}  Kh4 {[%clk 0:00:31]} 63. Ng2# {[%clk 0:00:08]} 1-0


[Site "https://www.chess.com"]

[Event "Late Titled Tuesday Blitz February 8 2022"]
[White "Zivkovic, Nemanja"]
[Black "Pranav, V"]
[WhiteFideId "942154"]
[BlackFideId "25060783"]
[WhiteElo "2388"]
[BlackElo "2349"]
[Result "0-1"]
[Round "06"]
[TimeControl "180+1"]
[Date "2022.02.08"]
[WhiteClock "0:00:05"]
[BlackClock "0:00:17"]

1. e4 {[%clk 0:03:00]}  e5 {[%clk 0:02:59]} 2. Nf3 {[%clk 0:03:00]}  Nf6 {[%clk 0:02:59]} 3. d3 {[%clk 0:02:57]}  Nc6 {[%clk 0:02:59]} 4. Be2 {[%clk 0:02:57]}  Bc5 {[%clk 0:02:57]} 5. Nbd2 {[%clk 0:02:57]}  d6 {[%clk 0:02:58]} 6. O-O {[%clk 0:02:56]}  h6 {[%clk 0:02:58]} 7. c3 {[%clk 0:02:56]}  g5 {[%clk 0:02:59]} 8. b4 {[%clk 0:02:51]}  Bb6 {[%clk 0:02:58]} 9. Nc4 {[%clk 0:02:51]}  Rg8 {[%clk 0:02:53]} 10. a4 {[%clk 0:02:46]}  a6 {[%clk 0:02:50]} 11. Nxb6 {[%clk 0:02:42]}  cxb6 {[%clk 0:02:51]} 12. Nd2 {[%clk 0:02:27]}  g4 {[%clk 0:02:46]} 13. Nc4 {[%clk 0:02:26]}  h5 {[%clk 0:02:44]} 14. Be3 {[%clk 0:02:18]}  h4 {[%clk 0:02:44]} 15. Nxb6 {[%clk 0:02:13]}  Rb8 {[%clk 0:02:43]} 16. b5 {[%clk 0:02:11]}  Ne7 {[%clk 0:02:39]} 17. f4 {[%clk 0:01:54]}  exf4 {[%clk 0:02:39]} 18. Rxf4 {[%clk 0:01:51]}  Ng6 {[%clk 0:02:39]} 19. Rf1 {[%clk 0:01:49]}  Be6 {[%clk 0:02:38]} 20. c4 {[%clk 0:01:46]}  Ne5 {[%clk 0:02:21]} 21. Qd2 {[%clk 0:01:42]}  Rg6 {[%clk 0:02:12]} 22. Nd5 {[%clk 0:01:41]}  Nxd5 {[%clk 0:01:52]} 23. cxd5 {[%clk 0:01:39]}  Bd7 {[%clk 0:01:45]} 24. d4 {[%clk 0:01:33]}  Nf3+ {[%clk 0:01:45]} 25. Bxf3 {[%clk 0:01:33]}  gxf3 {[%clk 0:01:46]} 26. Rxf3 {[%clk 0:01:34]}  h3 {[%clk 0:01:18]} 27. g3 {[%clk 0:01:27]}  axb5 {[%clk 0:00:58]} 28. axb5 {[%clk 0:01:25]}  Bxb5 {[%clk 0:00:57]} 29. Bf4 {[%clk 0:01:24]}  Kf8 {[%clk 0:00:55]} 30. Qb4 {[%clk 0:01:23]}  Ba6 {[%clk 0:00:52]} 31. e5 {[%clk 0:01:18]}  Kg8 {[%clk 0:00:52]} 32. exd6 {[%clk 0:01:17]}  Qd7 {[%clk 0:00:51]} 33. Rxa6 {[%clk 0:01:13]}  Rc8 {[%clk 0:00:42]} 34. Ra2 {[%clk 0:01:04]}  Qf5 {[%clk 0:00:42]} 35. Qb3 {[%clk 0:00:31]}  Qe4 {[%clk 0:00:39]} 36. Raf2 {[%clk 0:00:24]}  Rf6 {[%clk 0:00:34]} 37. Qd3 {[%clk 0:00:22]}  Qxd5 {[%clk 0:00:32]} 38. Qf1 {[%clk 0:00:07]}  Qe6 {[%clk 0:00:18]} 39. Re3 {[%clk 0:00:06]}  Qg4 {[%clk 0:00:16]} 40. Re5 {[%clk 0:00:05]}  Rg6 {[%clk 0:00:16]} 41. d5 {[%clk 0:00:04]}  Rd8 {[%clk 0:00:16]} 42. Re7 {[%clk 0:00:01]}  Rg7 {[%clk 0:00:16]} 43. d7 {[%clk 0:00:01]}  Qg6 {[%clk 0:00:17]} 44. Qe2 {[%clk 0:00:02]}  Kh7 {[%clk 0:00:18]} 45. Re8 {[%clk 0:00:03]}  Rxd7 {[%clk 0:00:18]} 46. Qe4 {[%clk 0:00:03]}  f5 {[%clk 0:00:18]} 47. Qe6 {[%clk 0:00:03]}  Qh5 {[%clk 0:00:18]} 48. Rd8 {[%clk 0:00:03]}  Rxd8 {[%clk 0:00:17]} 49. d6 {[%clk 0:00:04]}  Re8 {[%clk 0:00:17]} 50. Rf1 {[%clk 0:00:05]}  Rxe6 {[%clk 0:00:17]} 0-1


[Site "https://www.chess.com"]

[Event "Late Titled Tuesday Blitz February 8 2022"]
[White "Adewumi, Tanitoluwa"]
[Black "Ramirez, Alejandro"]
[WhiteFideId "30966396"]
[BlackFideId "6500617"]
[WhiteElo "2466"]
[BlackElo "2694"]
[Result "0-1"]
[Round "07"]
[TimeControl "180+1"]
[Date "2022.02.08"]
[WhiteClock "0:00:02"]
[BlackClock "0:00:56"]

1. b3 {[%clk 0:02:59]}  e5 {[%clk 0:02:54]} 2. Bb2 {[%clk 0:02:54]}  Nc6 {[%clk 0:02:55]} 3. e3 {[%clk 0:02:54]}  Nf6 {[%clk 0:02:54]} 4. Bb5 {[%clk 0:02:51]}  Bd6 {[%clk 0:02:54]} 5. Nf3 {[%clk 0:02:51]}  Qe7 {[%clk 0:02:50]} 6. O-O {[%clk 0:02:44]}  e4 {[%clk 0:02:46]} 7. Nh4 {[%clk 0:02:43]}  Be5 {[%clk 0:02:28]} 8. Nf5 {[%clk 0:02:00]}  Qc5 {[%clk 0:02:28]} 9. Nc3 {[%clk 0:01:53]}  Bxc3 {[%clk 0:02:12]} 10. Nxg7+ {[%clk 0:01:52]}  Kf8 {[%clk 0:02:12]} 11. Bxc3 {[%clk 0:01:53]}  Ne5 {[%clk 0:01:55]} 12. Bd4 {[%clk 0:00:51]}  Qxb5 {[%clk 0:01:26]} 13. c4 {[%clk 0:00:50]}  Qa6 {[%clk 0:01:06]} 14. Bxe5 {[%clk 0:00:42]}  Kxg7 {[%clk 0:01:06]} 15. f3 {[%clk 0:00:43]}  Re8 {[%clk 0:01:01]} 16. Bc3 {[%clk 0:00:20]}  Kg8 {[%clk 0:01:02]} 17. fxe4 {[%clk 0:00:15]}  Nxe4 {[%clk 0:01:03]} 18. Qf3 {[%clk 0:00:10]}  Qg6 {[%clk 0:01:01]} 19. Qf4 {[%clk 0:00:01]}  Nxc3 {[%clk 0:00:57]} 20. dxc3 {[%clk 0:00:02]}  d6 {[%clk 0:00:57]} 21. Rf3 {[%clk 0:00:02]}  Re4 {[%clk 0:00:56]} 0-1


[Site "https://www.chess.com"]

[Event "Late Titled Tuesday Blitz February 8 2022"]
[White "Bambino Filho, Antonio Carlos"]
[Black "Balint, Vilmos"]
[WhiteFideId "2113163"]
[BlackFideId "718050"]
[WhiteElo "2448"]
[BlackElo "2059"]
[Result "1-0"]
[Round "07"]
[TimeControl "180+1"]
[Date "2022.02.09"]
[WhiteClock "0:00:08"]
[BlackClock "0:00:12"]

1. e4 {[%clk 0:03:00]}  e5 {[%clk 0:02:50]} 2. Nf3 {[%clk 0:03:00]}  Nc6 {[%clk 0:02:50]} 3. Nc3 {[%clk 0:03:01]}  Nf6 {[%clk 0:02:49]} 4. a4 {[%clk 0:03:02]}  Bb4 {[%clk 0:02:48]} 5. Bd3 {[%clk 0:02:57]}  O-O {[%clk 0:02:47]} 6. O-O {[%clk 0:02:57]}  Re8 {[%clk 0:02:48]} 7. Ne2 {[%clk 0:02:57]}  d5 {[%clk 0:02:43]} 8. Ng3 {[%clk 0:02:55]}  dxe4 {[%clk 0:02:41]} 9. Nxe4 {[%clk 0:02:56]}  Nxe4 {[%clk 0:02:40]} 10. Bxe4 {[%clk 0:02:57]}  f5 {[%clk 0:02:40]} 11. Bxc6 {[%clk 0:02:48]}  bxc6 {[%clk 0:02:41]} 12. c3 {[%clk 0:02:49]}  Bd6 {[%clk 0:02:31]} 13. d4 {[%clk 0:02:49]}  e4 {[%clk 0:02:31]} 14. Ng5 {[%clk 0:02:44]}  Be7 {[%clk 0:01:54]} 15. Qh5 {[%clk 0:02:33]}  Bxg5 {[%clk 0:01:54]} 16. Bxg5 {[%clk 0:02:34]}  Qd7 {[%clk 0:01:49]} 17. Bf4 {[%clk 0:02:14]}  Ba6 {[%clk 0:01:47]} 18. Rfe1 {[%clk 0:02:14]}  Rab8 {[%clk 0:01:46]} 19. b4 {[%clk 0:02:14]}  Bc4 {[%clk 0:01:45]} 20. Re3 {[%clk 0:02:10]}  a5 {[%clk 0:01:42]} 21. bxa5 {[%clk 0:02:04]}  c5 {[%clk 0:01:34]} 22. Be5 {[%clk 0:01:59]}  cxd4 {[%clk 0:01:22]} 23. cxd4 {[%clk 0:02:00]}  Qxa4 {[%clk 0:01:10]} 24. Rae1 {[%clk 0:01:53]}  Qd7 {[%clk 0:01:09]} 25. Rg3 {[%clk 0:01:26]}  Re7 {[%clk 0:01:03]} 26. h4 {[%clk 0:00:59]}  Ra8 {[%clk 0:01:03]} 27. Rc1 {[%clk 0:00:53]}  Qe6 {[%clk 0:00:53]} 28. Qg5 {[%clk 0:00:44]}  h6 {[%clk 0:00:39]} 29. Qh5 {[%clk 0:00:21]}  c5 {[%clk 0:00:35]} 30. Rg6 {[%clk 0:00:21]}  Qd5 {[%clk 0:00:25]} 31. Qxh6 {[%clk 0:00:19]}  Raa7 {[%clk 0:00:19]} 32. Rb1 {[%clk 0:00:09]}  Rxe5 {[%clk 0:00:13]} 33. Rb8+ {[%clk 0:00:07]}  Re8 {[%clk 0:00:10]} 34. Rxe8+ {[%clk 0:00:06]}  Kf7 {[%clk 0:00:11]} 35. Rxg7+ {[%clk 0:00:05]}  Kxe8 {[%clk 0:00:12]} 36. Qh8+ {[%clk 0:00:06]}  Qg8 {[%clk 0:00:11]} 37. Rxg8+ {[%clk 0:00:06]}  Bxg8 {[%clk 0:00:11]} 38. Qxg8+ {[%clk 0:00:07]}  Kd7 {[%clk 0:00:12]} 39. Qg7+ {[%clk 0:00:08]}  Kc6 {[%clk 0:00:12]} 40. Qxa7 {[%clk 0:00:08]} 1-0


[Site "https://www.chess.com"]

[Event "Late Titled Tuesday Blitz February 8 2022"]
[White "Bortnyk, Olexandr"]
[Black "Riehle, Marco"]
[WhiteFideId "14120828"]
[BlackFideId "12904392"]
[WhiteElo "2723"]
[BlackElo "2462"]
[Result "1-0"]
[Round "07"]
[TimeControl "180+1"]
[Date "2022.02.08"]
[WhiteClock "0:01:43"]
[BlackClock "0:00:51"]

1. d4 {[%clk 0:03:00]}  d5 {[%clk 0:02:56]} 2. Nc3 {[%clk 0:02:58]}  Nf6 {[%clk 0:02:55]} 3. Bf4 {[%clk 0:02:58]}  e6 {[%clk 0:02:47]} 4. Nb5 {[%clk 0:02:57]}  Na6 {[%clk 0:02:41]} 5. e3 {[%clk 0:02:55]}  Be7 {[%clk 0:02:33]} 6. Nf3 {[%clk 0:02:55]}  O-O {[%clk 0:02:23]} 7. Ne5 {[%clk 0:02:54]}  c5 {[%clk 0:02:22]} 8. c3 {[%clk 0:02:50]}  Bd7 {[%clk 0:02:22]} 9. a4 {[%clk 0:02:49]}  Ne4 {[%clk 0:02:19]} 10. Bd3 {[%clk 0:02:46]}  f6 {[%clk 0:02:10]} 11. Nxd7 {[%clk 0:02:46]}  Qxd7 {[%clk 0:02:11]} 12. f3 {[%clk 0:02:45]}  Nd6 {[%clk 0:02:10]} 13. O-O {[%clk 0:02:44]}  c4 {[%clk 0:02:03]} 14. Bc2 {[%clk 0:02:41]}  Nxb5 {[%clk 0:02:01]} 15. axb5 {[%clk 0:02:42]}  Qxb5 {[%clk 0:02:00]} 16. Qd2 {[%clk 0:02:40]}  Rfd8 {[%clk 0:01:51]} 17. e4 {[%clk 0:02:39]}  dxe4 {[%clk 0:01:46]} 18. Qe2 {[%clk 0:02:24]}  e5 {[%clk 0:01:41]} 19. Qxe4 {[%clk 0:02:20]}  exf4 {[%clk 0:01:37]} 20. Qxh7+ {[%clk 0:02:20]}  Kf8 {[%clk 0:01:34]} 21. Bg6 {[%clk 0:02:17]}  Qd5 {[%clk 0:01:32]} 22. Rfe1 {[%clk 0:02:11]}  Bd6 {[%clk 0:01:15]} 23. Ra5 {[%clk 0:02:02]}  Qg8 {[%clk 0:01:14]} 24. Qh3 {[%clk 0:01:58]}  Nc7 {[%clk 0:01:11]} 25. Rh5 {[%clk 0:01:53]}  Re8 {[%clk 0:01:03]} 26. Bxe8 {[%clk 0:01:50]}  Rxe8 {[%clk 0:01:04]} 27. Rxe8+ {[%clk 0:01:49]}  Nxe8 {[%clk 0:01:02]} 28. Rh8 {[%clk 0:01:49]}  Qxh8 {[%clk 0:00:59]} 29. Qxh8+ {[%clk 0:01:50]}  Kf7 {[%clk 0:00:59]} 30. Qh5+ {[%clk 0:01:50]}  Kf8 {[%clk 0:00:56]} 31. Qd5 {[%clk 0:01:49]}  Be7 {[%clk 0:00:55]} 32. Qxb7 {[%clk 0:01:48]}  Nd6 {[%clk 0:00:55]} 33. Qxa7 {[%clk 0:01:48]}  g5 {[%clk 0:00:55]} 34. b3 {[%clk 0:01:47]}  cxb3 {[%clk 0:00:55]} 35. Qb8+ {[%clk 0:01:47]}  Kg7 {[%clk 0:00:55]} 36. Qxb3 {[%clk 0:01:48]}  f5 {[%clk 0:00:55]} 37. c4 {[%clk 0:01:47]}  g4 {[%clk 0:00:55]} 38. c5 {[%clk 0:01:47]}  Nf7 {[%clk 0:00:55]} 39. Qd5 {[%clk 0:01:44]}  g3 {[%clk 0:00:55]} 40. Qxf5 {[%clk 0:01:43]}  gxh2+ {[%clk 0:00:55]} 41. Kxh2 {[%clk 0:01:44]}  Bf6 {[%clk 0:00:55]} 42. Qxf4 {[%clk 0:01:44]}  Be7 {[%clk 0:00:50]} 43. Kg1 {[%clk 0:01:43]}  Bf6 {[%clk 0:00:49]} 44. c6 {[%clk 0:01:43]}  Bd8 {[%clk 0:00:50]} 45. c7 {[%clk 0:01:43]}  Bxc7 {[%clk 0:00:50]} 46. Qxc7 {[%clk 0:01:44]}  Kg8 {[%clk 0:00:51]} 47. Qxf7+ {[%clk 0:01:43]}  Kh8 {[%clk 0:00:51]} 48. Qe7 {[%clk 0:01:43]} 1-0


[Site "https://www.chess.com"]

[Event "Late Titled Tuesday Blitz February 8 2022"]
[White "Cupid, Kevin"]
[Black "Tsyhanchuk, Stanislav"]
[WhiteFideId "7700512"]
[BlackFideId "13505130"]
[WhiteElo "2096"]
[BlackElo "2078"]
[Result "0-1"]
[Round "07"]
[TimeControl "180+1"]
[Date "2022.02.09"]
[WhiteClock "0:01:28"]
[BlackClock "0:01:40"]

1. d4 {[%clk 0:03:00]}  d5 {[%clk 0:02:58]} 2. c4 {[%clk 0:03:00]}  c6 {[%clk 0:02:57]} 3. Nc3 {[%clk 0:03:00]}  Nf6 {[%clk 0:02:57]} 4. Nf3 {[%clk 0:03:00]}  dxc4 {[%clk 0:02:57]} 5. a4 {[%clk 0:02:56]}  Bf5 {[%clk 0:02:56]} 6. e3 {[%clk 0:02:56]}  e6 {[%clk 0:02:56]} 7. Bxc4 {[%clk 0:02:56]}  Bb4 {[%clk 0:02:56]} 8. O-O {[%clk 0:02:56]}  O-O {[%clk 0:02:55]} 9. Qe2 {[%clk 0:02:53]}  Bg6 {[%clk 0:02:53]} 10. Rd1 {[%clk 0:02:51]}  Nbd7 {[%clk 0:02:52]} 11. h3 {[%clk 0:02:49]}  Qe7 {[%clk 0:02:51]} 12. Bd2 {[%clk 0:02:47]}  Rfd8 {[%clk 0:02:50]} 13. Ne5 {[%clk 0:02:35]}  Nxe5 {[%clk 0:02:45]} 14. dxe5 {[%clk 0:02:35]}  Nd5 {[%clk 0:02:45]} 15. e4 {[%clk 0:02:09]}  Nxc3 {[%clk 0:02:39]} 16. bxc3 {[%clk 0:02:09]}  Bc5 {[%clk 0:02:37]} 17. Kh1 {[%clk 0:02:09]}  Qh4 {[%clk 0:02:20]} 18. f4 {[%clk 0:02:06]}  Bh5 {[%clk 0:02:16]} 19. Qf1 {[%clk 0:01:51]}  Bxd1 {[%clk 0:02:13]} 20. Rxd1 {[%clk 0:01:52]}  Rd7 {[%clk 0:02:04]} 21. Bc1 {[%clk 0:01:35]}  Rxd1 {[%clk 0:02:00]} 22. Qxd1 {[%clk 0:01:35]}  Rd8 {[%clk 0:01:57]} 23. Qf1 {[%clk 0:01:28]}  Qf2 {[%clk 0:01:40]} 0-1


[Site "https://www.chess.com"]

[Event "Late Titled Tuesday Blitz February 8 2022"]
[White "Dias, Joao Batista"]
[Black "Xie, Bryan"]
[WhiteFideId "2108240"]
[BlackFideId "30941296"]
[WhiteElo "1898"]
[BlackElo "1899"]
[Result "0-1"]
[Round "07"]
[TimeControl "180+1"]
[Date "2022.02.09"]
[WhiteClock "0:00:53"]
[BlackClock "0:00:07"]

1. e4 {[%clk 0:03:00]}  c5 {[%clk 0:02:59]} 2. f4 {[%clk 0:02:58]}  Nc6 {[%clk 0:02:58]} 3. Nf3 {[%clk 0:02:58]}  e6 {[%clk 0:02:58]} 4. c3 {[%clk 0:02:58]}  d5 {[%clk 0:02:59]} 5. e5 {[%clk 0:02:58]}  c4 {[%clk 0:02:51]} 6. d4 {[%clk 0:02:57]}  cxd3 {[%clk 0:02:51]} 7. Bxd3 {[%clk 0:02:56]}  Bc5 {[%clk 0:02:45]} 8. Qe2 {[%clk 0:02:55]}  Nge7 {[%clk 0:02:36]} 9. Nbd2 {[%clk 0:02:55]}  O-O {[%clk 0:02:28]} 10. Nb3 {[%clk 0:02:55]}  Bb6 {[%clk 0:02:28]} 11. Be3 {[%clk 0:02:54]}  a5 {[%clk 0:02:26]} 12. Nbd4 {[%clk 0:02:50]}  Nxd4 {[%clk 0:02:21]} 13. Nxd4 {[%clk 0:02:49]}  Nc6 {[%clk 0:02:21]} 14. Qh5 {[%clk 0:02:39]}  g6 {[%clk 0:02:20]} 15. Qh6 {[%clk 0:02:34]}  Bxd4 {[%clk 0:02:07]} 16. cxd4 {[%clk 0:02:32]}  Nb4 {[%clk 0:02:03]} 17. Bb1 {[%clk 0:02:27]}  b6 {[%clk 0:01:51]} 18. O-O {[%clk 0:02:26]}  Ba6 {[%clk 0:01:51]} 19. Re1 {[%clk 0:02:20]}  Rc8 {[%clk 0:01:47]} 20. h4 {[%clk 0:02:17]}  Bd3 {[%clk 0:01:42]} 21. h5 {[%clk 0:02:09]}  Bxb1 {[%clk 0:01:41]} 22. Raxb1 {[%clk 0:02:09]}  Qh4 {[%clk 0:01:29]} 23. Bf2 {[%clk 0:02:04]}  Qxh5 {[%clk 0:01:27]} 24. Qxh5 {[%clk 0:02:04]}  gxh5 {[%clk 0:01:28]} 25. Bh4 {[%clk 0:01:54]}  Nxa2 {[%clk 0:01:15]} 26. Bf6 {[%clk 0:01:49]}  h6 {[%clk 0:01:14]} 27. Re3 {[%clk 0:01:47]}  Kh7 {[%clk 0:01:15]} 28. Rh3 {[%clk 0:01:47]}  Kg6 {[%clk 0:01:05]} 29. Rf1 {[%clk 0:01:40]}  Rg8 {[%clk 0:00:59]} 30. Rff3 {[%clk 0:01:38]}  Nb4 {[%clk 0:00:36]} 31. Rfg3+ {[%clk 0:01:36]}  Kf5 {[%clk 0:00:36]} 32. Rxh5+ {[%clk 0:01:34]}  Ke4 {[%clk 0:00:32]} 33. Rc3 {[%clk 0:01:18]}  Kxd4 {[%clk 0:00:23]} 34. Rxh6 {[%clk 0:01:18]}  Rxc3 {[%clk 0:00:22]} 35. bxc3+ {[%clk 0:01:17]}  Kxc3 {[%clk 0:00:23]} 36. f5 {[%clk 0:01:16]}  d4 {[%clk 0:00:21]} 37. fxe6 {[%clk 0:01:16]}  fxe6 {[%clk 0:00:21]} 38. Bh4 {[%clk 0:01:11]}  Nd5 {[%clk 0:00:20]} 39. Rxe6 {[%clk 0:01:10]}  Rxg2+ {[%clk 0:00:19]} 40. Kf1 {[%clk 0:01:03]}  Ne3+ {[%clk 0:00:19]} 41. Ke1 {[%clk 0:01:03]}  Kd3 {[%clk 0:00:17]} 42. Bf2 {[%clk 0:00:59]}  Rh2 {[%clk 0:00:15]} 43. Bxe3 {[%clk 0:00:59]}  Kxe3 {[%clk 0:00:13]} 44. Kf1 {[%clk 0:00:58]}  d3 {[%clk 0:00:13]} 45. Rd6 {[%clk 0:00:57]}  d2 {[%clk 0:00:12]} 46. e6 {[%clk 0:00:58]}  Rh7 {[%clk 0:00:06]} 47. Rd7 {[%clk 0:00:54]}  Rxd7 {[%clk 0:00:06]} 48. exd7 {[%clk 0:00:53]}  d1=Q+ {[%clk 0:00:07]} 0-1


[Site "https://www.chess.com"]

[Event "Late Titled Tuesday Blitz February 8 2022"]
[White "Garagulya, Konstantin"]
[Black "Al-Tarboush, Ward"]
[WhiteFideId "4128931"]
[BlackFideId "7601450"]
[WhiteElo "2329"]
[BlackElo "2276"]
[Result "0-1"]
[Round "07"]
[TimeControl "180+1"]
[Date "2022.02.09"]
[WhiteClock "0:00:43"]
[BlackClock "0:02:44"]

1. d4 {[%clk 0:02:54]}  d5 {[%clk 0:02:59]} 2. Nf3 {[%clk 0:02:53]}  Nf6 {[%clk 0:02:58]} 3. c4 {[%clk 0:02:50]}  c6 {[%clk 0:02:58]} 4. Qc2 {[%clk 0:02:48]}  g6 {[%clk 0:02:57]} 5. Bf4 {[%clk 0:02:48]}  Bg7 {[%clk 0:02:57]} 6. e3 {[%clk 0:02:47]}  O-O {[%clk 0:02:57]} 7. Nbd2 {[%clk 0:02:47]}  Bf5 {[%clk 0:02:57]} 8. Qb3 {[%clk 0:02:47]}  b6 {[%clk 0:02:56]} 9. Rc1 {[%clk 0:02:46]}  Nbd7 {[%clk 0:02:54]} 10. h3 {[%clk 0:02:44]}  Ne4 {[%clk 0:02:52]} 11. cxd5 {[%clk 0:02:41]}  cxd5 {[%clk 0:02:50]} 12. Qxd5 {[%clk 0:02:37]}  Nxd2 {[%clk 0:02:49]} 13. Nxd2 {[%clk 0:02:36]}  e5 {[%clk 0:02:47]} 14. dxe5 {[%clk 0:02:22]}  Nxe5 {[%clk 0:02:48]} 15. Qxd8 {[%clk 0:01:43]}  Raxd8 {[%clk 0:02:49]} 16. Ba6 {[%clk 0:01:42]}  Nd3+ {[%clk 0:02:49]} 17. Bxd3 {[%clk 0:01:41]}  Bxd3 {[%clk 0:02:50]} 18. b3 {[%clk 0:01:37]}  Rc8 {[%clk 0:02:49]} 19. Rd1 {[%clk 0:01:27]}  Bc2 {[%clk 0:02:49]} 20. Ke2 {[%clk 0:01:22]}  Bxd1+ {[%clk 0:02:49]} 21. Rxd1 {[%clk 0:01:23]}  Rfd8 {[%clk 0:02:49]} 22. a4 {[%clk 0:01:16]}  Rc2 {[%clk 0:02:48]} 23. e4 {[%clk 0:01:15]}  Bc3 {[%clk 0:02:47]} 24. Be3 {[%clk 0:01:11]}  Rb2 {[%clk 0:02:47]} 25. g4 {[%clk 0:01:09]}  Bxd2 {[%clk 0:02:46]} 26. Bxd2 {[%clk 0:01:06]}  Rxb3 {[%clk 0:02:46]} 27. f3 {[%clk 0:01:05]}  Rb2 {[%clk 0:02:45]} 28. Ke3 {[%clk 0:01:05]}  Rb3+ {[%clk 0:02:44]} 29. Ke2 {[%clk 0:01:05]}  Rb2 {[%clk 0:02:45]} 30. Ke3 {[%clk 0:01:05]}  Ra2 {[%clk 0:02:46]} 31. h4 {[%clk 0:01:03]}  Rxa4 {[%clk 0:02:45]} 32. h5 {[%clk 0:01:00]}  Ra3+ {[%clk 0:02:45]} 33. Ke2 {[%clk 0:00:59]}  Ra2 {[%clk 0:02:45]} 34. h6 {[%clk 0:00:58]}  a5 {[%clk 0:02:44]} 35. Ke3 {[%clk 0:00:50]}  a4 {[%clk 0:02:44]} 36. g5 {[%clk 0:00:48]}  a3 {[%clk 0:02:44]} 37. f4 {[%clk 0:00:43]}  Raxd2 {[%clk 0:02:44]} 0-1


[Site "https://www.chess.com"]